[Event "40th Cappelle Open 2024"]
[Site "Cappelle-la-Grande"]
[Date "2024.03.05"]
[Round "5.4"]
[White "Boyer, Mahel"]
[Black "Lamard, Guillaume"]
[Result "0-1"]
[ECO "A13"]
[WhiteElo "2415"]
[BlackElo "2483"]
[Annotator "TA"]
[PlyCount "72"]
[EventDate "2024.03.02"]
[EventType "swiss"]
[EventCountry "FRA"]
[SourceTitle "playchess.com"]
[Source "ChessBase"]
[SourceQuality "1"]
[TimeControl "40/5400+30:1800+30"]

{[%evp 9,72,12,20,25,19,6,18,13,4,17,8,3,12,0,0,19,10,16,0,0,45,11,26,29,23,13,27,-324,-313,-327,-327,-314,-304,-417,-185,-159,-191,-265,-280,-293,-284,-288,-296,-289,-259,-431,-410,-423,-413,-399,-401,-422,-420,-854,-860,-874,-874,-874,-854,-829,-827,-818,-804,-746,-671]} 1. Nf3 {[%emt 0:01:21]} Nf6 {[%emt 0:00:26]} 2. e3 {[%emt 0:04:42]} d5 {[%emt 0:00:56]} 3. c4 {[%emt 0:00:06]} e6 {[%emt 0:00:22]} 4. b3 {[%emt 0:00:04]} a6 {[%emt 0:02:12]} 5. Bb2 {[%emt 0:01:05]} c5 {[%emt 0:00:13]} 6. cxd5 {[%emt 0:04:36]} exd5 {[%emt 0:00:06]} 7. Be2 {[%emt 0:05:47]} Nc6 {[%emt 0:00:06]} 8. d4 {[%emt 0:00:03] The position is equal.} cxd4 {[%emt 0:00:41]} 9. Nxd4 {[%emt 0:00:04]} Bb4+ {[%emt 0:00:04]} 10. Bc3 {[%emt 0:00:01]} Bd6 {[%emt 0:01:50]} 11. Nd2 {[%emt 0:00:16]} O-O {[%emt 0:00:23]} 12. O-O {[%emt 0:00:03]} Re8 {[%emt 0:01:08]} 13. Nxc6 {[%emt 0:00:07]} bxc6 {[%emt 0:00:06][%cal Bb7c6,Bc6c5][%mdl 32]} 14. Qc2 {[%emt 0:00:02]} h5 {[%emt 0:15:14]} 15. Bd3 {[%emt 0:05:16]} c5 {[%emt 0:02:29][%cal Od5d4]} 16. h3 {[%emt 0:08:15]} Bb7 {[%emt 0:02:30][%cal Od5d4]} 17. Rfe1 {[%emt 0:01:45]} Rc8 {[%emt 0:05:45]} 18. Qb2 $2 {[%emt 0:04:39][%mdl 8192] [#] White does not recover from this.} (18. Bf5 $11 {and White is okay.}) 18... d4 $1 $19 {[%emt 0:04:25][%mdl 512]} 19. exd4 {[%emt 0:01:36]} cxd4 {[%emt 0:05:06]} 20. Bxd4 {[%emt 0:08:55] [#]} Ba3 $1 {[%emt 0:00:16][%mdl 512]} 21. Bxf6 {[%emt 0:10:53]} (21. Rxe8+ Nxe8) 21... Bxb2 {[%emt 0:11:03]} (21... Qd5 $142 {[%csl Gb7][%cal Rd5g2]} 22. Rxe8+ (22. Qxa3 $2 Qxg2#) (22. Be4 $2 Rxe4 23. Nxe4 Bxb2 $19) 22... Rxe8 23. Bh7+ Kxh7 24. Qc2+ Kg8) 22. Bxd8 {[%emt 0:00:07]} Rexd8 {[%emt 0:00:14]} 23. Be4 {[%emt 0:02:22] White is weak on the dark squares} (23. Rab1 $142 Bc3 24. Bf5) 23... Bxe4 {[%emt 0:00:41]} 24. Nxe4 {[%emt 0:00:01]} Bxa1 {[%emt 0:00:10]} 25. Rxa1 {[%emt 0:00:02][%mdl 4096] Endgame. KRR-KRN} Rc2 {[%emt 0:01:39]} 26. a3 {[%emt 0:01:51]} Re8 {[%emt 0:06:53]} 27. Ng3 {[%emt 0:03:44]} (27. Re1 Kf8 (27... f5 28. Nf6+ gxf6 29. Rxe8+ Kf7 30. Rb8 $18) 28. g4) 27... g6 {[%emt 0:03:52]} 28. h4 {[%emt 0:01:26]} f5 {[%emt 0:06:10]} 29. Nf1 {[%emt 0:02:09]} Rb2 {[%emt 0:01:50][%cal Oe8e2] Strongly threatening ...Ree2!} 30. Ne3 {[%emt 0:03:25]} Rxb3 {[%emt 0:00:08]} 31. g3 {[%emt 0:00:12]} (31. Kf1 $142) 31... Reb8 {[%emt 0:00:46] Black is clearly winning.} 32. Kf1 {[%emt 0:00:52]} Rb1+ {[%emt 0:00:33]} 33. Rxb1 {[%emt 0:00:01]} Rxb1+ {[%emt 0:00:05]} 34. Ke2 {[%emt 0:00:01]} Rb2+ {[%emt 0:00:57]} 35. Ke1 {[%emt 0:00:45]} Kg7 {[%emt 0:00:53]} 36. Nc4 {[%emt 0:00:28]} Ra2 {[%emt 0:04:20] Weighted Error Value: White=0.52/Black=0.22 (precise) .  Loses game:     	White=1     	---        Mistake:       	White=3     	Black=1      Inaccurate:     	White=2     	Black=1      OK:         	White=10    	Black=13     Best:        	White=1     	Black=1      Brilliant:      	---       	Black=2} 0-1

[Event "40th Cappelle Open 2024"]
[Site "Cappelle-la-Grande"]
[Date "2024.03.05"]
[Round "5.5"]
[White "Jablonicky, Martin"]
[Black "Velten, Paul"]
[Result "0-1"]
[ECO "A46"]
[WhiteElo "2393"]
[BlackElo "2475"]
[Annotator "TA"]
[PlyCount "66"]
[EventDate "2024.03.02"]
[EventType "swiss"]
[EventCountry "FRA"]
[SourceTitle "playchess.com"]
[Source "ChessBase"]
[SourceQuality "1"]
[TimeControl "40/5400+30:1800+30"]

{[%evp 9,66,8,12,5,13,27,22,0,0,-72,-71,-93,-62,-91,-30,-32,-13,-37,66,37,54,11,42,21,42,-22,138,134,126,-15,-11,-16,-15,-60,86,98,142,133,118,-122,-125,-497,-518,-513,-505,-514,-499,-2185,-2047,-2892,-2604,-1889,-1263,-1404,-1347,-1586,-1513,-2128,-1199]} 1. d4 {[%emt 0:00:04]} Nf6 {[%emt 0:01:57]} 2. Nf3 {[%emt 0:00:05]} e6 {[%emt 0:00:59]} 3. Bf4 {[%emt 0:00:05]} c5 {[%emt 0:04:24]} 4. e3 {[%emt 0:00:06]} Be7 {[%emt 0:03:12]} 5. Nc3 {[%emt 0:06:53]} cxd4 {[%emt 0:01:30]} 6. exd4 {[%emt 0:02:09]} d6 {[%emt 0:01:48]} 7. Bd3 {[%emt 0:01:09]} a6 {[%emt 0:00:31]} 8. Qe2 {[%emt 0:03:53] The position is equal.} Nc6 {[%emt 0:04:32]} 9. O-O-O {[%emt 0:03:41]} (9. O-O $11) 9... b5 $17 {[%emt 0:02:32]} 10. g4 {[%emt 0:04:28]} b4 {[%emt 0:00:12]} 11. Ne4 {[%emt 0:00:29]} Nxe4 {[%emt 0:00:46]} (11... Nd5 $17 12. Bg3 a5) 12. Qxe4 $11 {[%emt 0:02:04]} d5 {[%emt 0:00:59]} 13. Qe3 {[%emt 0:00:17]} Bd7 {[%emt 0:05:48]} (13... a5 $1 $15) 14. h4 $14 {[%emt 0:09:57]} a5 {[%emt 0:01:13]} 15. Kd2 {[%emt 0:03:01]} Qb6 {[%emt 0:00:47]} 16. g5 {[%emt 0:05:05]} f6 {[%emt 0:03:03]} 17. Rhg1 {[%emt 0:12:06]} ({White should try} 17. gxf6 $14 gxf6 (17... Bxf6 18. Rhg1 $16) 18. b3) 17... g6 $2 {[%emt 0:14:57] [#]} ({Black should play} 17... b3 $1 $11 18. gxf6 (18. axb3 e5 $17) 18... gxf6) 18. h5 $1 $36 {[%emt 0:04:39][%mdl 2560] White is in control.} gxh5 {[%emt 0:01:43]} (18... fxg5 19. Bxg5) 19. g6 {[%emt 0:08:06]} (19. c4 $16 {And now cxd5 would win.} bxc3+ 20. bxc3 Qb2+ 21. Ke1 (21. Bc2 fxg5 22. Bxg5 Nb4 $18)) 19... hxg6 $11 {[%emt 0:00:17]} 20. Bxg6+ {[%emt 0:00:06]} Kd8 {[%emt 0:00:06]} 21. Bf7 {[%emt 0:00:09]} a4 {[%emt 0:00:09]} (21... b3 $1 $15 22. Qxb3 (22. cxb3 a4 $17) 22... Ra6) 22. Bxe6 $16 {[%emt 0:09:59]} Ra7 {[%emt 0:01:47]} 23. Bxd7 {[%emt 0:00:43]} (23. Bxd5 b3 24. Bxc6 (24. cxb3 $2 Qa5+ 25. Kc1 Qxd5 $19) 24... bxc2 $15) 23... Rxd7 {[%emt 0:00:06]} 24. Rg7 $2 {[%emt 0:01:20]} (24. Qe6 $16 {and life is bright. Intending Rg8+ and mate.} Kc8 25. Kc1) 24... b3 $1 $17 {[%emt 0:00:11] Really sharp!} 25. Rdg1 $2 {[%emt 0:00:37][%mdl 8192] Now White is beyond hope.} (25. cxb3 $2 Bb4+ 26. Kc2 Rxg7 $19) (25. Qe6 $17 Bb4+ 26. Kc1 Rxg7 27. axb3 (27. Qxd5+ $2 Rd7 $19) (27. Qxf6+ $2 Kc8 $19)) 25... Bb4+ $19 {[%emt 0:03:10] Black is clearly winning.} (25... bxa2 $2 26. Rg8+ Bf8 27. Rxh8 $18) 26. c3 {[%emt 0:00:27]} Rxg7 {[%emt 0:00:54]} 27. Rxg7 {[%emt 0:00:30] [#]} Re8 {[%emt 0:00:23] Wards off Qe6} 28. Qd3 {[%emt 0:01:58]} (28. Bc7+ Qxc7 29. Rxc7 (29. Qxe8+ $2 Kxe8 30. Rxc7 bxa2 $19) 29... Rxe3 30. axb3 Rxf3 (30... Kxc7 $2 31. fxe3 a3 32. bxa3 $19)) (28. axb3 $142 Rxe3 29. fxe3) 28... bxa2 {[%emt 0:03:13]} 29. Bc7+ {[%emt 0:08:26]} Qxc7 $1 {[%emt 0:00:30]} 30. Rxc7 {[%emt 0:00:04]} Kxc7 {[%emt 0:01:56]} ({And not} 30... a1=B 31. Rxc6 Kd7 32. Qb5 (32. Rxf6 Bxb2 33. cxb4 Bc1+ 34. Kxc1 Ke7 35. Qg6 Kd7 36. Rf7+ Re7 37. Ne5+ Kd8 38. Rf8+ Re8 39. Rxe8+ Kc7 40. Qc6#) 32... Bd6 33. Qxd5 (33. Qxa4 Rd8 $18) 33... Re6 34. Rb6 Ke8 35. Qxe6+ Kf8 36. Qxd6+ Kf7 37. Qxf6+ Ke8 38. Qg7 Kd8 39. Rb8#) 31. Qf1 {[%emt 0:00:06] [#]} Na5 $1 {[%emt 0:00:16]} 32. Kc2 {[%emt 0:03:43] [#] Prevents Nb3} (32. Kd3 Nb3) 32... Nb3 $1 {[%emt 0:00:20]} 33. Qb5 {[%emt 0:00:49]} (33. cxb4 a1=Q) 33... Rb8 {[%emt 0:02:22] Weighted Error Value: White=1.31/Black=0.45.  Loses game:     	White=1     	---        Mistake:       	White=5     	Black=4      Inaccurate:     	White=3     	Black=2      OK:         	White=4     	Black=7      Best:        	White=2     	Black=4      Strong:       	---       	Black=1      Brilliant:      	White=1     	---} (33... a1=N+ 34. Kb1 Rb8 35. Qxd5 $18 (35. Qxa4 Bxc3 36. Qa7+ Rb7 $16)) 0-1

[Event "40th Cappelle Open 2024"]
[Site "Cappelle-la-Grande"]
[Date "2024.03.05"]
[Round "5.6"]
[White "Idani, Pouya"]
[Black "Lucas, Arthur"]
[Result "1-0"]
[ECO "B21"]
[WhiteElo "2609"]
[BlackElo "2341"]
[Annotator "TA"]
[PlyCount "117"]
[EventDate "2024.03.02"]
[EventType "swiss"]
[EventCountry "FRA"]
[SourceTitle "playchess.com"]
[Source "ChessBase"]
[SourceQuality "1"]
[TimeControl "40/5400+30:1800+30"]

{[%evp 41,117,8,52,0,52,0,58,53,82,80,89,93,92,97,93,52,58,47,49,47,50,42,103,25,33,25,52,49,45,16,25,11,21,13,14,22,18,0,0,0,0,0,218,214,210,104,243,239,250,226,259,251,253,226,281,68,191,190,168,192,262,265,556,569,565,580,453,564,509,476,729,656,825,804,29980,29981,29981,29982]} 1. e4 {[%emt 0:00:01]} c5 {[%emt 0:00:06]} 2. Be2 {[%emt 0:00:25]} Nc6 {[%emt 0:01:01]} 3. d3 {[%emt 0:00:04]} e6 {[%emt 0:01:05]} 4. f4 {[%emt 0:00:05]} d5 {[%emt 0:00:20]} 5. Nf3 {[%emt 0:00:05]} Bd6 {[%emt 0:00:55]} 6. O-O {[%emt 0:00:08] B21: Sicilian: 2 f4 and Morra Gambit.} Nge7 {[%emt 0:01:01]} 7. c3 {[%emt 0:05:34]} f6 {[%emt 0:01:31]} 8. Be3 {[%emt 0:06:59]} Qc7 {[%emt 0:00:58]} 9. Na3 {[%emt 0:07:19]} a6 {[%emt 0:04:29]} 10. g3 {[%emt 0:00:30]} b6 $146 {[%emt 0:09:18]} ({Predecessor:} 10... O-O 11. Qe1 b6 12. Rc1 Bb7 13. Qf2 Rac8 14. Nc2 Nd8 15. Nd2 Nf7 16. Qg2 Rfd8 {½-½ Manhardt,T (2173)-Karasek,L (2235) Feffernitz op 32nd 2023 (8)}) 11. Nc2 {[%emt 0:02:47]} Bb7 {[%emt 0:02:27]} 12. b4 {[%emt 0:05:42]} O-O {[%emt 0:03:21]} 13. bxc5 {[%emt 0:04:28]} bxc5 {[%emt 0:04:16]} 14. Nd2 {[%emt 0:00:47]} Na5 {[%emt 0:20:09]} 15. Rb1 {[%emt 0:14:18]} Rab8 {[%emt 0:05:57]} 16. Bf2 {[%emt 0:03:04]} Ba8 {[%emt 0:04:36]} 17. Ne3 {[%emt 0:08:43]} Rxb1 {[%emt 0:03:46]} 18. Qxb1 {[%emt 0:00:06]} Rb8 {[%emt 0:01:22]} 19. Qc2 {[%emt 0:00:39]} Bc6 {[%emt 0:03:43]} 20. Bg4 {[%emt 0:03:41]} Bd7 {[%emt 0:04:14]} 21. Bf3 {[%emt 0:00:08]} Bc6 {[%emt 0:01:35]} 22. Bg4 {[%emt 0:00:51]} Bd7 {[%emt 0:00:06]} 23. Bf3 {[%emt 0:00:04]} Bc6 {[%emt 0:00:03]} 24. Re1 {[%emt 0:07:38]} Qb7 {[%emt 0:04:53]} 25. Bg4 {[%emt 0:02:31]} Bd7 {[%emt 0:00:25]} 26. Rb1 {[%emt 0:02:50]} Qc8 {[%emt 0:03:25]} 27. Rxb8 {[%emt 0:00:32]} Bxb8 {[%emt 0:00:21]} 28. Bf3 {[%emt 0:07:24]} Bc6 {[%emt 0:01:12]} 29. exd5 {[%emt 0:04:32]} exd5 {[%emt 0:00:19]} 30. c4 {[%emt 0:00:04]} d4 {[%emt 0:04:08]} 31. Nd5 {[%emt 0:00:09]} Nxd5 {[%emt 0:04:56]} (31... Kf8 $14) 32. cxd5 {[%emt 0:02:16]} (32. Bxd5+ $16 Bxd5 33. cxd5) 32... Bd7 $11 {[%emt 0:00:04]} 33. Ne4 {[%emt 0:00:05]} f5 {[%emt 0:04:18]} 34. Ng5 {[%emt 0:02:51]} (34. Nxc5 $2 Ba7 35. Bxd4 Nb7 $19) 34... Bd6 {[%emt 0:00:32]} 35. Qd2 {[%emt 0:01:36]} Nb7 {[%emt 0:03:51]} 36. Bd1 {[%emt 0:00:34]} Nd8 {[%emt 0:02:31]} 37. Bb3 {[%emt 0:01:07]} h6 {[%emt 0:00:31]} 38. Nf3 {[%emt 0:00:31]} Nf7 {[%emt 0:00:04]} 39. Qd1 {[%emt 0:01:20]} Qe8 {[%emt 0:01:35]} 40. Nd2 {[%emt 0:00:33]} g5 {[%emt 0:00:33]} 41. Nc4 {[%emt 0:37:26]} Kg7 $2 {[%emt 0:11:33]} (41... gxf4 $11 {and Black has nothing to worry.} 42. Nxd6 Nxd6) 42. Nxd6 $1 $18 {[%emt 0:00:00]} Nxd6 {[%emt 0:00:03] [#]} 43. fxg5 {[%emt 0:00:00]} (43. Qc1 $1 $18 {[%cal Rc1c5] and the rest is easy.}) 43... hxg5 {[%emt 0:02:00]} (43... Nf7 $16 {was necessary.}) 44. Qc1 $18 {[%emt 0:00:00]} Qe2 {[%emt 0:05:39]} 45. Qxg5+ {[%emt 0:00:00]} Kf7 {[%emt 0:01:53]} 46. Qd8 {[%emt 0:00:00]} Qe7 {[%emt 0:00:58]} 47. Qb6 {[%emt 0:00:00]} Bb5 {[%emt 0:01:07]} 48. Bc2 $2 {[%emt 0:00:00]} (48. Qxc5 $6 Bxd3 49. Qc1 (49. Qxd4 Qe2 $16) 49... Kg6 $18) (48. h4 $18) 48... Nc8 {[%emt 0:04:25] [#]} (48... Qe2 $1 $14) 49. Qb8 $1 $18 {[%emt 0:00:00]} Bd7 {[%emt 0:04:19]} 50. Qb7 {[%emt 0:00:00]} Ke8 {[%emt 0:02:55]} (50... a5 $142 51. Bb3 Kf6 52. Qa6+ Qd6 53. Qxa5 Nb6) 51. Qxa6 $18 {[%emt 0:00:00]} Qe2 $2 {[%emt 0:00:22]} (51... Qd6 52. Qxd6 Nxd6) 52. Ba4 $18 {[%emt 0:00:00]} Bxa4 {[%emt 0:00:47]} 53. Qxa4+ {[%emt 0:00:41]} Ke7 {[%emt 0:00:31]} 54. Qc6 {[%emt 0:00:47]} Qxd3 {[%emt 0:00:29]} 55. Qxc5+ {[%emt 0:00:08]} ({Stronger than} 55. Qxc8 Qb1+ 56. Kg2 Qe4+ 57. Kf1 Qd3+ 58. Ke1 Qc3+ 59. Kd1 Qd3+ 60. Ke1 Qb1+ 61. Kd2 Qxa2+ 62. Ke1 Qb1+ 63. Ke2 Qb5+ 64. Kf3 Qd3+ 65. Kg2 Qe4+ 66. Kh3 Qg4+ 67. Kg2 Qe4+ 68. Kh3 Qg4+ 69. Kg2 Qe4+ $11) 55... Nd6 {[%emt 0:00:16]} (55... Kd7 $142 56. Qc6+ (56. Qxd4 Qb1+ 57. Kg2 Qxa2 $18) 56... Ke7) 56. Qxd4 $18 {[%emt 0:00:12]} ({Less strong is} 56. Qc7+ Ke8 $16) 56... Qb1+ {[%emt 0:00:17]} 57. Kg2 {[%emt 0:00:06]} Qxa2 {[%emt 0:00:06]} 58. Qe5+ {[%emt 0:00:04]} Kd7 {[%emt 0:00:04]} 59. Qe6+ {[%emt 0:00:05]} 1-0

[Event "40th Cappelle Open 2024"]
[Site "Cappelle-la-Grande"]
[Date "2024.03.05"]
[Round "5.7"]
[White "Lodici, Lorenzo"]
[Black "Bournel, Antoine"]
[Result "1-0"]
[ECO "B13"]
[WhiteElo "2558"]
[BlackElo "2332"]
[Annotator "TA"]
[PlyCount "137"]
[EventDate "2024.03.02"]
[EventType "swiss"]
[EventCountry "FRA"]
[SourceTitle "playchess.com"]
[Source "ChessBase"]
[SourceQuality "1"]
[TimeControl "40/5400+30:1800+30"]

{[%evp 32,137,49,12,26,30,28,23,39,30,51,37,37,39,39,41,59,65,60,61,61,46,89,89,85,87,81,84,95,95,97,96,92,27,12,19,24,19,37,29,51,0,8,3,65,51,51,58,66,66,66,66,66,66,70,47,47,47,47,47,55,55,81,81,66,72,82,0,65,65,108,83,79,81,79,63,63,63,79,54,115,64,60,0,54,54,54,54,64,39,42,47,148,145,583,563,564,557,29967,29968,29981,29982,29984,29984,29984,29985,29988,29989]} 1. e4 {[%emt 0:00:03]} c6 {[%emt 0:01:04]} 2. d4 {[%emt 0:02:51]} d5 {[%emt 0:00:10]} 3. exd5 {[%emt 0:00:20]} cxd5 {[%emt 0:00:27]} 4. Bd3 {[%emt 0:00:03]} Nc6 {[%emt 0:01:16]} 5. c3 {[%emt 0:00:05]} Nf6 {[%emt 0:00:22]} 6. Bf4 {[%emt 0:00:16]} Bg4 {[%emt 0:00:33]} 7. Qb3 {[%emt 0:00:04]} Qd7 {[%emt 0:00:35]} 8. Nd2 {[%emt 0:00:53]} e6 {[%emt 0:00:27]} 9. Ngf3 {[%emt 0:00:05]} Bd6 {[%emt 0:00:40]} 10. Bxd6 {[%emt 0:00:22]} Qxd6 {[%emt 0:00:04]} 11. O-O {[%emt 0:00:06]} O-O {[%emt 0:02:46]} 12. Rae1 {[%emt 0:03:16]} Bxf3 {[%emt 0:09:40]} 13. Nxf3 {[%emt 0:01:10]} Qc7 {[%emt 0:00:08]} 14. Ne5 {[%emt 0:00:10]} Nxe5 {[%emt 0:13:54]} 15. dxe5 {[%emt 0:02:50]} Nd7 {[%emt 0:01:29]} 16. Qc2 {[%emt 0:00:06]} Nxe5 {[%emt 0:06:04]} 17. Bxh7+ {[%emt 0:00:10]} Kh8 {[%emt 0:00:02]} 18. Re3 {[%emt 0:00:08]} g6 {[%emt 0:09:49]} 19. Rh3 {[%emt 0:01:35]} Kg7 {[%emt 0:02:01]} 20. Qd2 {[%emt 0:00:49]} Ng4 $1 {[%emt 0:03:02]} 21. Qg5 {[%emt 0:14:31]} Rh8 $1 {[%emt 0:04:43]} 22. Qxg4 {[%emt 0:00:19]} Rxh7 {[%emt 0:00:31]} 23. Qd4+ {[%emt 0:01:26]} e5 {[%emt 0:07:35]} 24. Rxh7+ {[%emt 0:01:13]} (24. Qxd5 Rxh3 25. gxh3 Rd8 $15) 24... Kxh7 {[%emt 0:00:02]} 25. Qxd5 {[%emt 0:00:17]} Rd8 {[%emt 0:00:26]} 26. Qb3 {[%emt 0:03:30]} Kg7 {[%emt 0:03:56]} 27. Rd1 {[%emt 0:02:10]} Rxd1+ {[%emt 0:00:12]} 28. Qxd1 {[%emt 0:00:01]} Qc4 {[%emt 0:00:44]} 29. a3 {[%emt 0:01:40]} Qa2 {[%emt 0:06:09]} 30. Qc1 {[%emt 0:00:39]} b5 {[%emt 0:00:39]} 31. h4 {[%emt 0:06:55]} a5 {[%emt 0:04:40] [#]} 32. h5 {[%emt 0:05:05]} (32. f3 $1 $16) 32... gxh5 $11 {[%emt 0:01:33]} 33. Qg5+ {[%emt 0:00:13]} Kf8 {[%emt 0:00:18]} 34. Qxh5 {[%emt 0:00:07]} Qb1+ {[%emt 0:15:09]} 35. Kh2 {[%emt 0:00:17]} Qe4 {[%emt 0:00:21]} 36. Kh3 {[%emt 0:12:59]} f6 {[%emt 0:02:37]} 37. Qh4 {[%emt 0:01:30]} Qc6 {[%emt 0:01:09]} (37... Qf5+ $1 $11 38. Kg3 Ke7) 38. Qh8+ {[%emt 0:06:54]} Kf7 {[%emt 0:00:29]} 39. Qh7+ {[%emt 0:00:04]} Kf8 {[%emt 0:00:54]} 40. f3 {[%emt 0:13:05]} a4 {[%emt 0:00:08]} 41. Qe4 {[%emt 0:30:32]} Qd7+ {[%emt 0:08:40]} 42. Kh2 {[%emt 0:00:00]} Kg7 {[%emt 0:04:16]} 43. c4 {[%emt 0:00:00]} bxc4 {[%emt 0:00:49]} 44. Qxc4 {[%emt 0:00:00]} Qd1 {[%emt 0:02:21]} 45. Qe4 {[%emt 0:00:00]} Qb3 {[%emt 0:03:31]} 46. Kg3 {[%emt 0:00:00]} Kf7 {[%emt 0:00:54]} 47. Qh7+ {[%emt 0:00:00]} Kf8 {[%emt 0:00:11]} 48. Qg6 {[%emt 0:00:00]} Qb6 {[%emt 0:01:19]} 49. Kg4 {[%emt 0:00:00]} (49. Qe4 $16 Qxb2 50. Qxa4) 49... Qe6+ {[%emt 0:03:30]} (49... e4 $11) 50. Kh5 {[%emt 0:00:00]} Ke7 {[%emt 0:03:07]} 51. Qc2 {[%emt 0:00:00]} Qf7+ {[%emt 0:03:18]} 52. Kh4 {[%emt 0:00:00]} Qe8 {[%emt 0:00:20]} 53. Qc5+ {[%emt 0:00:00]} Kf7 {[%emt 0:01:20]} 54. Qc4+ {[%emt 0:01:33]} Kg7 {[%emt 0:01:02]} 55. Kg3 {[%emt 0:01:11]} Qb8 {[%emt 0:01:14]} (55... f5 $14) 56. Qb4 {[%emt 0:01:59]} ({Much weaker is} 56. Qxa4 $6 Qxb2 57. Qb4 Qe2 $11) ({White should play} 56. Qg4+ $16 Kf7 57. Qd7+ (57. Qxa4 Qxb2 58. Qd7+ Kf8 $16) 57... Kg6 58. Qg4+ (58. Qxa4 Qxb2 59. Qg4+ Kf7 $16) 58... Kf7 59. Qd7+ (59. Qxa4 Qxb2 60. Qc4+ Kg6 $16) 59... Kg6 60. Qxa4 Qxb2 61. Qe4+ Kg5 62. Qh7) 56... Qe8 $14 {[%emt 0:00:22]} 57. Qc4 {[%emt 0:02:25]} (57. Kh2 $14) 57... f5 {[%emt 0:01:41]} (57... Qb8 $11) 58. b4 $14 {[%emt 0:00:59]} axb3 {[%emt 0:00:22]} 59. Qxb3 {[%emt 0:00:02]} Qc6 {[%emt 0:01:39]} 60. a4 {[%emt 0:07:49]} Qc1 {[%emt 0:02:01]} 61. Qb4 {[%emt 0:01:41]} Qg5+ {[%emt 0:01:05]} ({Better is} 61... e4 $14) 62. Kf2 $16 {[%emt 0:00:07]} f4 $2 {[%emt 0:01:04][%mdl 8192]} (62... e4 $16 {is tougher.} 63. Qd4+ (63. fxe4 Qf4+ 64. Ke2 fxe4 $16) 63... Kg8) 63. a5 $18 {[%emt 0:00:03]} Qh4+ {[%emt 0:00:27]} 64. Kg1 {[%emt 0:00:34]} Qd8 {[%emt 0:00:37]} 65. a6 {[%emt 0:01:14]} Qd1+ {[%emt 0:00:27]} 66. Kh2 {[%emt 0:00:01]} Qa1 {[%emt 0:00:19]} 67. Qe7+ {[%emt 0:00:46]} Kg6 {[%emt 0:00:13]} 68. a7 {[%emt 0:00:15]} Qe1 {[%emt 0:00:05]} 69. Qe6+ {[%emt 0:00:11]} ({Weaker is} 69. a8=B Qg3+ 70. Kg1 Qe1+ 71. Kh2 Qg3+ 72. Kg1 Qe1+ 73. Kh2 $11) 1-0

[Event "40th Cappelle Open 2024"]
[Site "Cappelle-la-Grande"]
[Date "2024.03.05"]
[Round "5.8"]
[White "Karthikeyan, P.."]
[Black "Can, Emre"]
[Result "0-1"]
[ECO "A22"]
[WhiteElo "2306"]
[BlackElo "2551"]
[Annotator "TA"]
[PlyCount "68"]
[EventDate "2024.03.02"]
[EventType "swiss"]
[EventCountry "FRA"]
[SourceTitle "playchess.com"]
[Source "ChessBase"]
[SourceQuality "1"]
[TimeControl "40/5400+30:1800+30"]

{[%evp 17,68,0,0,0,0,0,0,0,0,-32,-25,-49,-44,-81,-48,-41,-39,-36,-42,-37,-38,-66,-57,-68,-75,-56,-67,-115,-110,-119,-112,-184,-169,-157,-149,-176,-167,-153,-161,-162,-172,-162,-166,-336,-351,-342,-334,-420,-421,-423,-418,-391,-380]} 1. c4 {[%emt 0:12:01]} e5 {[%emt 0:00:22]} 2. Nc3 {[%emt 0:00:08]} Nf6 {[%emt 0:01:00]} 3. g3 {[%emt 0:00:55]} Bb4 {[%emt 0:02:06]} 4. Bg2 {[%emt 0:00:56]} O-O {[%emt 0:03:17]} 5. Nf3 {[%emt 0:03:45]} Bxc3 {[%emt 0:02:32]} 6. bxc3 {[%emt 0:03:39]} Re8 {[%emt 0:01:38]} 7. O-O {[%emt 0:00:45]} d6 {[%emt 0:06:00]} 8. d3 {[%emt 0:01:18]} e4 {[%emt 0:02:09]} 9. Nd4 {[%emt 0:02:29]} Nbd7 {[%emt 0:01:23]} 10. Nc2 {[%emt 0:01:54]} h6 {[%emt 0:01:23]} 11. f3 {[%emt 0:02:25]} exd3 {[%emt 0:03:17]} 12. exd3 {[%emt 0:00:07] The position is equal.} Rb8 {[%emt 0:01:39]} 13. f4 {[%emt 0:02:18]} Nc5 {[%emt 0:01:04]} 14. f5 {[%emt 0:01:16]} Bd7 {[%emt 0:04:48]} 15. Ne3 {[%emt 0:06:45]} Qe7 {[%emt 0:13:50]} 16. Rb1 {[%emt 0:06:06]} Bc6 {[%emt 0:03:38]} 17. Bxc6 {[%emt 0:01:18]} bxc6 {[%emt 0:00:39]} 18. Rxb8 {[%emt 0:00:10]} Rxb8 {[%emt 0:00:05]} 19. Qc2 {[%emt 0:00:11]} Re8 {[%emt 0:04:33] Black is more active.} 20. Bd2 {[%emt 0:02:46]} d5 {[%emt 0:01:34]} 21. cxd5 {[%emt 0:03:30]} cxd5 {[%emt 0:07:41]} 22. Qb1 {[%emt 0:02:52]} (22. Ng2 $15 {feels stronger.}) 22... Qd6 {[%emt 0:02:35]} 23. Rf4 {[%emt 0:01:05]} Ncd7 {[%emt 0:06:51][%cal Bc5d7,Bd7e5,Be5d3][%mdl 32]} 24. Bc1 {[%emt 0:16:44]} (24. Rf1 $17) 24... Qc5 $19 {[%emt 0:06:36]} 25. Qb4 {[%emt 0:02:22]} Qxb4 {[%emt 0:00:46]} 26. cxb4 {[%emt 0:03:14]} Ne5 {[%emt 0:00:05]} 27. Bd2 {[%emt 0:00:13]} Nxd3 {[%emt 0:00:15]} 28. Rd4 {[%emt 0:00:25]} Ne5 {[%emt 0:00:13] Excellent horsemanship.} 29. Kg2 {[%emt 0:00:08] Repels Nf3} c6 {[%emt 0:00:40]} 30. b5 $2 {[%emt 0:01:54] [#]} (30. h3 {was worth a try.}) 30... c5 {[%emt 0:00:34]} ({Not} 30... cxb5 31. Nxd5 Nxd5 32. Rxd5 $17) 31. Ra4 {[%emt 0:00:53]} Rb8 {[%emt 0:01:21]} 32. Rxa7 {[%emt 0:02:20]} Rxb5 {[%emt 0:00:07]} 33. Nd1 {[%emt 0:00:09] Prevents Rb2.} d4 {[%emt 0:00:59] [#] White must now prevent ...Rb1.} 34. Bf4 {[%emt 0:00:37]} Nd3 {[%emt 0:00:23] Weighted Error Value: White=0.21 (precise) /Black=0.02 (flawless) .  Mistake:       	White=3     	---        Inaccurate:     	White=3     	Black=1      OK:         	White=7     	Black=15     Best:        	White=2     	Black=2} 0-1